Cogmind - Beta 11.1 *** ADVENTURER MODE // 2022.05.13 @ 13:52:45 Player: Fgdfgfthgr Result: Destroyed by D-53 Grenadier with Mini Grenade Launcher Performance ------------- Evolutions (0) 0 Regions Visited (4) 800 Robots Destroyed (35) 175 Value Destroyed (613) 613 Prototype IDs (27) 540 Alien Tech Used (0) 0 Bonus (279) 279 TOTAL SCORE: 2407 Bonus ------- Aligned with FarCom 300 Friendly Fire -21 Cogmind --------- Core Integrity 0/250 Matter 254/300 Energy 93/100 System Corruption 1% Temperature Cool (2) Movement Core (500) Ox9 Location -9/Mines Parts ------- > --- POWER (1) -------- (None) > --- PROPULSION (2) --- (None) > --- UTILITY (2) ------ Large Storage Unit Hardened Light Armor Plating > --- WEAPON (2) ------- Light Assault Rifle Heavy Assault Rifle > --- INVENTORY (15) --- Ion Engine Light Nuclear Core Light Treads Flexi-carbon Leg Heat Sink Huge Storage Unit Light Armor Plating Hardened Light Armor Plating Shield Generator EM Pulse Gun Light Assault Rifle Grenade Launcher Makeshift Sword Peak State ------------ > --- POWER ------------ Improved Ion Engine > --- PROPULSION ------- Light Treads Light Treads > --- UTILITY ---------- Large Storage Unit Light Armor Plating > --- WEAPON ----------- Heavy Assault Rifle Shotgun > --- INVENTORY -------- Ion Engine Light Nuclear Core Light Treads Aluminum Leg Heat Sink Huge Storage Unit Light Armor Plating Hardened Light Armor Plating Hardened Light Armor Plating Shield Generator EM Pulse Gun Light Assault Rifle Light Assault Rifle Grenade Launcher Makeshift Sword [Rating: 12] Favorites ----------- Power Ion Engine Engine Ion Engine Propulsion Light Treads Treads Light Treads Leg Aluminum Leg Utility Large Storage Unit Storage Large Storage Unit Protection Power Shielding Weapon Light Assault Rifle Energy Gun Medium Laser Ballistic Gun Light Assault Rifle Launcher Grenade Launcher Build | -11 -10 -10 -10 -9 ------- Run | Scr Mat Min Exi Min Slots Evolved . | . . . . . Power . | . . . . . Propulsion . | . . . . . Utility . | . . . . . Weapon . | . . . . . Parts Attached 18 | . 6 2 1 9 Power 1 | . . . . 1 Engine 1 | . . . . 1 Core . | . . . . . Reactor . | . . . . . Propulsion 5 | . 3 . . 2 Treads 5 | . 3 . . 2 Leg . | . . . . . Wheel . | . . . . . Hover . | . . . . . Flight . | . . . . . Utility 4 | . 2 . . 2 Device . | . . . . . Storage 1 | . 1 . . . Processor . | . . . . . Hackware . | . . . . . Protection 3 | . 1 . . 2 Artifact . | . . . . . Weapon 8 | . 1 2 1 4 Energy Gun 1 | . . 1 . . Energy Cannon . | . . . . . Ballistic Gun 6 | . 1 1 . 4 Ballistic Cannon . | . . . . . Launcher 1 | . . . 1 . Special Weapon . | . . . . . Impact Weapon . | . . . . . Slashing Weapon . | . . . . . Piercing Weapon . | . . . . . Special Melee Weapon . | . . . . . Unidentified Prototypes . | . . . . . Parts Lost 5 | . . . . 5 Power 1 | . . . . 1 Propulsion 2 | . . . . 2 Utility 1 | . . . . 1 Weapon 1 | . . . . 1 Highest Loss Streak 5 | . . . . 5 To Critical Strikes . | . . . . . Average Slot Usage (%) 99 | . 99 100 100 99 Engine 13 | . 14 14 14 13 Treads 27 | . 27 28 28 27 Storage 14 | . 14 14 14 14 Protection 13 | . 13 14 14 14 Energy Gun 11 | . 14 14 14 . Ballistic Gun 16 | . 14 14 12 27 Naked Turns . | . . . . . Heaviest Build 36 | 13 29 29 31 36 Greatest Support 40 | 20 40 40 40 40 Greatest Overweight (x) . | . . . . . Average Overweight (x) . | . . . . . Largest Inventory Capacity 15 | . 15 15 15 15 Average Capacity 14 | . 14 15 15 15 Most Carried 15 | . 15 15 15 15 Average Carried 14 | . 13 14 15 14 Final Capacity 15 | 8 15 15 15 15 Final Carried 15 | 6 15 15 15 13 Class Distribution -------------------- 78% | Mutant 21% | Scavenger-Mutant Dominant Class ---------------- Mutant | -10/Materials Mutant | -10/Mines Mutant | -10/Exiles Scavenger-Mutant | -9/Mines Resources | -11 -10 -10 -10 -9 ----------- Run | Scr Mat Min Exi Min Matter Collected 718 | 188 119 44 . 367 Remotely . | . . . . . Salvage Created 1068 | . 559 296 . 213 Parts 59 | . 31 22 . 6 Haulers Intercepted 2 | . 2 . . . Recyclers Shooed . | . . . . . Parts Field Recycled . | . . . . . Retrieved Matter . | . . . . . Parts Self-Destructed . | . . . . . Prevented . | . . . . . Kills | -11 -10 -10 -10 -9 ------- Run | Scr Mat Min Exi Min Combat Hostiles Destroyed 35 | . 12 9 . 14 Guns 34 | . 12 8 . 14 Classes Destroyed 8 | . 5 1 . 2 Worker 1 | . . 1 . . Tunneler 5 | . 2 3 . . Hauler 2 | . 2 . . . Watcher 3 | . 3 . . . Swarmer 14 | . 6 7 . 1 Grunt 9 | . 6 2 . 1 Demolisher 1 | . . . . 1 Assembled 11 | . . . . 11 Best Kill Streak 5 | . 5 3 . 5 Combat Bots Only 5 | . 5 3 . 5 Max Kills in Single Turn 2 | . 2 2 . 2 Gunslinging 1 | . 1 1 . 1 Exploded . | . . . . . Melee . | . . . . . Uniques/NPCs Destroyed . | . . . . . Combat | -11 -10 -10 -10 -9 -------- Run | Scr Mat Min Exi Min Damage Taken 1333 | . 201 228 . 904 Core 261 | . 68 39 . 154 Absorbed by Shields . | . . . . . Redirected to Shielding 10 | . 10 . . . Core Remaining (%) 100 | 100 . . . . Volleys Fired 130 | . 47 27 9 47 Largest 2 | . 2 2 1 2 Hottest 70 | . 70 70 30 46 Shots Fired 236 | . 93 54 9 80 Gun 231 | . 93 54 4 80 Cannon . | . . . . . Launcher 5 | . . . 5 . Special . | . . . . . Kinetic 158 | . 47 27 4 80 Thermal 60 | . 46 14 . . Explosive 5 | . . . 5 . Electromagnetic 13 | . . 13 . . Robot Hit Streak 17 | . 17 17 . 17 Robot Miss Streak 3 | . 3 2 . 3 Penetration Max . | . . . . . Secondary Targets 9 | . 4 2 . 3 Max Gunslinging Chain 1 | . 1 1 . 1 Shots Hit Robots 169 | . 69 42 . 58 Core Hits 79 | . 29 20 . 30 Critical Kills 1 | . . . . 1 Critical Parts Destroyed 1 | . 1 . . . Critical Strikes 4 | . 2 1 . 1 Burn 2 | . 1 1 . . Destroy 2 | . 1 . . 1 Melee Attacks . | . . . . . Impact . | . . . . . Slashing . | . . . . . Piercing . | . . . . . Sneak Attacks . | . . . . . Combat Hostiles . | . . . . . Follow-up Attacks . | . . . . . Damage Inflicted 2186 | . 756 448 . 982 Guns 2186 | . 756 448 . 982 Cannons . | . . . . . Explosions . | . . . . . Melee . | . . . . . Ramming . | . . . . . Kinetic 1443 | . 298 163 . 982 Thermal 614 | . 458 156 . . Explosive . | . . . . . Electromagnetic 129 | . . 129 . . Impact . | . . . . . Slashing . | . . . . . Piercing . | . . . . . Highest Corruption 1 | . . . . 1 Average Corruption 1 | . . . . 1 Corruption Purged . | . . . . . Corruption Blocked . | . . . . . Effects 7 | . . . . 7 Message Errors 2 | . . . . 2 Matter Fused 1 | . . . . 1 Heat Flow Errors 1 | . . . . 1 Energy Discharges 1 | . . . . 1 Data Loss (minor) 1 | . . . . 1 Misfires 1 | . . . . 1 Overload Shots . | . . . . . Overflow Damage . | . . . . . Projectiles . | . . . . . Explosions . | . . . . . Melee . | . . . . . Knockbacks . | . . . . . Impact . | . . . . . Kinetic . | . . . . . Secondary . | . . . . . Self-Inflicted Damage . | . . . . . Shots . | . . . . . Rammed . | . . . . . Targets Rammed . | . . . . . Kicked . | . . . . . Crushed . | . . . . . Highest Temperature 272 | . 272 251 . 239 Average Temperature 72 | . 66 76 . 84 Received Heat Transfer 245 | . 114 111 . 20 Effects 1 | . 1 . . . Energy Bleed 1 | . 1 . . . Siege Activations . | . . . . . Robots Corrupted . | . . . . . Combat Hostiles . | . . . . . Parts Fried . | . . . . . Impact Corruptions . | . . . . . Robots Melted 1 | . . 1 . . Combat Hostiles 1 | . . 1 . . Parts Melted 1 | . . 1 . . Heat Transferred 1887 | . 1369 518 . . Parts Sabotaged . | . . . . . Parts Stolen . | . . . . . Parts Stripped . | . . . . . Power Chain Reactions . | . . . . . Missiles Intercepted . | . . . . . Alert | -11 -10 -10 -10 -9 ------- Run | Scr Mat Min Exi Min Peak Influence 232 | . 232 210 . 40 Initial . | . . . . . Average 57 | . 71 79 . 3 Maximum Alert Level 1 | . 1 1 . . Low Security (%) 89 | . 95 75 . 100 Level 1 10 | . 4 24 . . Level 2 . | . . . . . Level 3 . | . . . . . Level 4 . | . . . . . Level 5 . | . . . . . High Security . | . . . . . Max Security . | . . . . . Squads Dispatched 4 | . 3 . . 1 Investigation 4 | . 3 . . 1 Extermination . | . . . . . Reinforcement . | . . . . . Assault . | . . . . . Garrison . | . . . . . Intercept . | . . . . . Searches Triggered . | . . . . . Construction Impeded . | . . . . . Haulers Reinforced . | . . . . . Active Scanning Responses . | . . . . . Cargo Convoy Interrupts . | . . . . . Stealth | -11 -10 -10 -10 -9 --------- Run | Scr Mat Min Exi Min Distress Signals 1 | . 1 . . . Communications Jammed . | . . . . . Distress Signals . | . . . . . Times Spotted 56 | . 18 11 . 27 Peak Tracking Total 12 | . 5 6 9 12 Tactical Retreats 4 | . 1 1 . 2 Traps | -11 -10 -10 -10 -9 ------- Run | Scr Mat Min Exi Min Traps Triggered 1 | . 1 . . . Indirectly . | . . . . . Trap Hack Attempts . | . . . . . Triggered . | . . . . . Disarmed . | . . . . . Reprogrammed . | . . . . . Reused . | . . . . . Traps Extracted . | . . . . . Installed . | . . . . . Triggered . | . . . . . Machines | -11 -10 -10 -10 -9 ---------- Run | Scr Mat Min Exi Min Machines Disabled 2 | . . . 2 . Max in Single Turn 1 | . . . 1 . Machines Sabotaged . | . . . . . Garrisons Compromised . | . . . . . Overloaded Fab Kills . | . . . . . Hacking | -11 -10 -10 -10 -9 --------- Run | Scr Mat Min Exi Min Machines Accessed 13 | . 10 . 1 2 Terminals 8 | . 8 . . . Fabricators . | . . . . . Repair Stations . | . . . . . Recycling Units 2 | . 2 . . . Scanalyzers . | . . . . . Garrison Access . | . . . . . Total Hacks 34 | . 31 . 1 2 Successful 21 | . 18 . 1 2 Failed 12 | . 12 . . . Catastrophic 1 | . 1 . . . Database Lockouts 1 | . 1 . . . Manual 24 | . 23 . 1 . Terminals 29 | . 29 . . . Fabricators . | . . . . . Repair Stations . | . . . . . Recycling Units 2 | . 2 . . . Scanalyzers . | . . . . . Garrison Access . | . . . . . Terminal Hacks 14 | . 11 . 1 2 Robot Analysis 2 | . 2 . . . Prototype ID Bank 2 | . 2 . . . Open Door 2 | . . . . 2 Alert Level 1 | . 1 . . . Locate Traps 3 | . 3 . . . Registered Components 1 | . 1 . . . Zone Layout 2 | . 2 . . . EX-Prototype ID Bank 1 | . . . 1 . Fabricator Hacks . | . . . . . Repair Station Hacks . | . . . . . Recycling Unit Hacks . | . . . . . Scanalyzer . | . . . . . Garrison Access Hacks . | . . . . . Unauthorized Hacks 7 | . 7 . . . Terminals 5 | . 5 . . . Botnet 4 | . 4 . . . Detonate 1 | . 1 . . . Fabricators . | . . . . . Repair Stations . | . . . . . Recycling Units 2 | . 2 . . . Tunnel 2 | . 2 . . . Scanalyzers . | . . . . . Garrison Access . | . . . . . Data Cores Recovered . | . . . . . Used . | . . . . . Hacking Detections 7 | . 7 . . . Full Trace Events . | . . . . . Feedback Events . | . . . . . Feedback Blocked . | . . . . . Robot Schematics Acquired . | . . . . . Robots Built . | . . . . . Authchips . | . . . . . Time . | . . . . . Total Robot Build Rating . | . . . . . Part Schematics Acquired . | . . . . . Parts Built . | . . . . . Authchips . | . . . . . Time . | . . . . . Total Part Build Rating . | . . . . . Parts Repaired . | . . . . . Time . | . . . . . Parts Recycled . | . . . . . Recycled Matter . | . . . . . Retrieved Matter . | . . . . . Retrieved Components . | . . . . . Parts Scanalyzed . | . . . . . Part Schematics Acquired . | . . . . . Parts Damaged . | . . . . . Bothacking | -11 -10 -10 -10 -9 ------------ Run | Scr Mat Min Exi Min Used RIF Installer . | . . . . . Robots Hacked . | . . . . . Non-combat . | . . . . . Combat . | . . . . . Robot Hacks Applied . | . . . . . Relay Couplers Released . | . . . . . Fabnet Peak Effective % . | . . . . . Robots Rewired . | . . . . . Allies Hacked . | . . . . . Hacks Repelled . | . . . . . Allies | -11 -10 -10 -10 -9 -------- Run | Scr Mat Min Exi Min Total Allies . | . . . . . Largest Group . | . . . . . Highest-Rated Group . | . . . . . Highest-Rated Ally . | . . . . . Total Orders . | . . . . . Ally Attacks . | . . . . . Total Damage . | . . . . . Kills . | . . . . . Allies Corrupted . | . . . . . Allies Melted . | . . . . . Intel | -11 -10 -10 -10 -9 ------- Run | Scr Mat Min Exi Min Robot Analysis Total 2 | . 2 . . . Derelict Logs Recovered 3 | . . 1 . 2 Drone Launches . | . . . . . Drone Recoveries . | . . . . . Exploration | -11 -10 -10 -10 -9 ------------- Run | Scr Mat Min Exi Min Turns Passed 3538 | . 1238 1080 448 772 Spaces Moved 1964 | 1 681 626 269 387 Core . | . . . . . Treads 1939 | . 657 626 269 387 Legs 25 | 1 24 . . . Wheels . | . . . . . Hover . | . . . . . Flight . | . . . . . Fastest Speed 120 | 120 120 160 160 160 Average Speed 159 | 120 158 160 160 160 Slowest Speed 160 | 120 160 160 160 160 Overloaded Moves . | . . . . . Propulsion Burnouts . | . . . . . Robots Hopped . | . . . . . Cave-ins Triggered . | . . . . . Exploration Rate (%) 67 | 1 98 99 61 76 Regions Visited 4 Branch Regions 3 Pre-discovered Areas 4 | . 2 1 . 1 Known Exits Taken . | . . . . . Unknown Exits Taken 4 | 1 1 1 1 . Scrap Searched 5 | . . 1 . 4 Spaces Dug . | . . . . . Terrain Destroyed 26 | . . . 26 . Melee . | . . . . . Projectile . | . . . . . AOE 26 | . . . 26 . Terrain Rammed . | . . . . . Walls Destroyed . | . . . . . Machines Disabled . | . . . . . Actions | -11 -10 -10 -10 -9 --------- Run | Scr Mat Min Exi Min Total 2161 | . 760 657 278 466 Wait 14 | . 1 . . 13 Move 1960 | . 680 625 268 387 Hop . | . . . . . Pick Up 19 | . 16 1 . 2 Fast Attach 3 | . 1 . . 2 Attach 3 | . . 1 . 2 Detach . | . . . . . Swap 12 | . 5 1 1 5 Drop 20 | . 10 2 . 8 Fire 130 | . 47 27 9 47 Melee . | . . . . . Ram . | . . . . . Kick . | . . . . . Crush . | . . . . . Escape Stasis . | . . . . . Rewire . | . . . . . Trap . | . . . . . Miscellaneous . | . . . . . Route ------- -11/Scrapyard -10/Materials (discovered 5 exits: [*Mat x3] / [*Min x2]) -10/Mines (discovered 3 exits: [*Mat x2] / *Exi) -10/Exiles (discovered 2 exits: *Min x2) -9/Mines History --------- Turn | Location | Event 1 | -11/Scrapyard | Discovered new exit (range 0) 1 | -11/Scrapyard | Entered Materials 244 | -10/Materials | Discovered new exit (range 7) 304 | -10/Materials | Build established: Mutant 432 | -10/Materials | Discovered new exit (range 16) 450 | -10/Materials | Central database locked down 541 | -10/Materials | Discovered new exit (range 11) 746 | -10/Materials | Discovered new exit (range 15) 1058 | -10/Materials | Discovered new exit (range 10) 1239 | -10/Materials | Entered Mines 1240 | -10/Mines | Met a Derelict bent on vengeance 1611 | -10/Mines | A weapon hastily lodged in a ceiling crevice suddenly fell to the ground 1687 | -10/Mines | Deemed a non-threat by the Exiles lab entrance 1779 | -10/Mines | Discovered new exit (range 8) 1869 | -10/Mines | Discovered new exit (range 9) 2058 | -10/Mines | Learned location of Zion (-7) 2313 | -10/Mines | Discovered new exit (range 5) 2319 | -10/Mines | Entered Exiles 2343 | -10/Exiles | Discovered new exit (range 15) 2363 | -10/Exiles | Met 8R-AWN 2385 | -10/Exiles | Met EX-HEX 2447 | -10/Exiles | Met EX-DEC 2479 | -10/Exiles | Met EX-BIN 2499 | -10/Exiles | Aligned with FarCom system 2500 | -10/Exiles | Given EX-Vault access code 2537 | -10/Exiles | Opened EX-Vault 2577 | -10/Exiles | Warned to stay clear of 0b10 Research branches 2683 | -10/Exiles | Discovered new exit (range 10) 2736 | -10/Exiles | Attacked by the Exiles 2767 | -10/Exiles | Entered Mines 2780 | -9/Mines | Joined a pair of Derelicts in attacking an 0b10 outpost 2830 | -9/Mines | Learned 2 Materials zone layouts 2938 | -9/Mines | Met a Derelict who couldn't figure out how to use a Trap Extractor 3048 | -9/Mines | Met a Derelict shopkeep closing up shop 3063 | -9/Mines | Build established: Scavenger-Mutant 3157 | -9/Mines | Assembled infested the area 3162 | -9/Mines | Assisted by a Guerilla fighting off Assembled 3195 | -9/Mines | Core integrity fell below 50% 3498 | -9/Mines | Learned location of Storage (-7) 3526 | -9/Mines | Core integrity fell below 20% 3539 | -9/Mines | Destroyed by D-53 Grenadier with Mini Grenade Launcher Last Messages --------------- 03487_ Found 29 Matter. 03498_ Acquired derelict log, extracted data. World map updated: -7/Storage. 03501_ System corrupted: Energy discharge (-55). 03517_ Lgt. Treads destroyed. 03521_ Imp. Ion Engine destroyed. 03521_ Lgt. Armor Plating destroyed. 03524_ D-53 Grenadier destroyed. 03524_ Switching to secondary target: D-53 Grenadier. 03525_ The unstable cave ceiling collapses. 03533_ Shotgun destroyed. 03534_ The unstable cave ceiling collapses. 03534_ U-05 Engineer builds a Wall. 03535_ The unstable cave ceiling collapses. 03537_ K-01 Serf destroyed. 03538_ The unstable cave ceiling collapses. 03538_ U-05 Engineer lays Concrete. 03539_ The unstable cave ceiling collapses. 03539_ U-05 Engineer lays Concrete. 03539_ Lgt. Treads destroyed. Map ----- +----------------------------------------------------+ | ??????# ### #?????# ! | | ??????# !!! ## #?????######## ] | | ??????# ! ! ## #????????????## %! #### ### | | ??????# ! ## #?????????????##! ##??## ##?? | | ??????# !! #??????????????######????#####??? | | ??????# # ##???????????????????????????????? | | ??????## # #????????????????????????????????? | | ???????######## #????????????????????????????????? | | ??????????????# #????????????????????????????????? | | ??????????????# #????????????????????????????????? | | ??????????????# ######???????????????????????????? | | ??????????????# [!%#???????????????????????????? | | ??????????????# ####!#???????????????????????????? | | ??????????????# #??# #???????????????????????????? | | ??????????????# #??# #???????????????????????????? | | ??????????????# #??# #???????????????????????????? | | ??????????????# #??# #######?????????????????????? | | ??????????????# #??# #?????????????????????? | | ??????????????# #??####### #?????????????????????? | | ??????????????? ???????## #?????????????????????? | | ??????????????? ?????### ##????????????????????? | | ??????????????? ????## % ###???????????????????? | | ??????????????? ????# ##??? #?????????????? | | ??????????????? ????# ## #??????????????? | | ??????????????? ????## # #???????????????? | | ??????????????? ????# @ du #????????????????? | | ????????????????????# u #????????????????? | | ????????????????????# ##????????????????? | | ????????????????????## ##?????????????????? | | ?????????????????????## # ###??????????????????? | | ??????????????????????#######????????????????????? | | ?????????????????????????????????????????????????? | | | | | | | | | | | | | | | | | | | | | | | | | | | | | | | | | | | | | +----------------------------------------------------+ Best States ------------- Heat Dissipation 25 Energy Generation 12 Energy Capacity 265 Matter Stores 300 Matter Capacity 300 Sight Range 16 Terrain Scan Density 10 Armor Coverage 150 Resistance: KI 20 Resistance: TH 20 Resistance: EX 20 Resistance: EM 20 Resistance: I 20 Resistance: S 20 Resistance: P 20 Power Shielding 33 Evasion (%) 55 Recoil Reduction 2 Offensive Hacking 10 Item Schematics ----------------- None Robot Schematics ------------------ None Fabricated ------------ Nothing Alien Tech Used ----------------- None Achievements -------------- None Challenges ------------ None Game ------ Seed HypervelocityChargeLeg Manual? 0 Play Time 00:19:51 Cumulative 187.3 hours Start 2022.05.13 @ 13:37:00 End 2022.05.13 @ 13:52:45 Sessions 1 Manual Loads 0 Difficulty Adventurer Special Mode None Game No. 85 Rogue 0 Adventurer 85 Explorer 0 Win Type - Total 14 Types 8/1/1/1/1/0/0/1/1 Lore% 88 Gallery% 84 Achievement% 75 Wizard Run 0 Options --------- ASCII 0 Keyboard 0 Movement Numpad Keybinds 0 Fullscreen 2 Font 18/SmallcapsGlow Map View 76x50 Tactical HUD 1 Map Filters NONE Filters NONE Steam 1 RUN: 8812d832-82f6-4e51-b0f5-f96dcce80082